Workbook

Sheet Start
A1: Beleggingen bijhouden | B1: Beleggingen bijhouden
A3: Met het sjabloon Beleggingen bijhouden kunt u uw beleggingen en activatoewijzing volgen. Met het gegevenstype Excel Aandelen blijft uw portefeuille up to date met actuele koersen en de details van uw activa. De twee werkbladen, Portefeuille en Activatoewijzing, worden hieronder beschreven. Opmerking: Het gegevenstype Excel Aandelen is alleen beschikbaar voor Office 365-abonnementen.
A5: Portefeuille | B5: Portefeuille
A6: Voeg uw beleggingen toe, typ tickersymbolen, bedrijfsnamen of fondsnamen op de plaats van de voorbeelden, of voeg er meer toe op extra rijen. Selecteer een activacategorie en voer het aantal aandelen in.
A7: Klik op de knop Kolom toevoegen om extra kolommen toe te voegen, zoals Tickersymbool of Beurs.
A21: Klik op een van de aandelen om de weergave te vernieuwen. Klik op het tabblad Gegevens in de groep Query’s en verbindingen op Alles vernieuwen of druk op Ctrl+Alt+F5.
A26: Activatoewijzing | B26: Activatoewijzing
A28: Pas Categorie en Mijn doel aan om de doelstellingen voor uw portefeuille in te stellen.
A29: Wanneer een activacategorie de Drempel overschrijdt, wordt de inhoud weergegeven in geel.

Sheet Portefeuille
A1: Beleggingen bijhouden | B1: Beleggingen bijhouden
A3: Portefeuille | B3: Portefeuille
A5: Er is een tabel met bestaande aandelen in cellen B5:I11, en een totaalrij in rij 12. Voer in cellen B5:B11 een bedrijfsnaam en ga naar Gegevens > Vernieuwen of druk op Ctrl+Alt+F5. | B5: Bedrijf | C5: Categorie | D5: Shares | E5: Prijs | F5: Wijzigen | G5: Wijzigen (%) | H5: Portefeuille (%) | I5: Waarde
A6: Voeg uw beleggingen toe, typ tickersymbolen, bedrijfsnamen of fondsnamen op de plaats van de voorbeelden, of voeg er meer toe op extra rijen. Selecteer een activacategorie en voer het aantal aandelen in. | C6: Amerikaanse aandelen | D6: 1,200 | E6: =_FV(TabelPortefeuille[[#This Row],[Bedrijf]],"Price") -> € 105.21 | F6: =_FV(TabelPortefeuille[[#This Row],[Bedrijf]],"Change") -> € -0.24 | G6: =_FV(TabelPortefeuille[[#This Row],[Bedrijf]],"Change (%)",TRUE) -> -0.23% | H6: =IFERROR(I6/SUBTOTAL(109,TabelPortefeuille[Waarde]),"") -> 60% | I6: =D6 * E6 -> € 126,252.00
A7: Klik op de knop Kolom toevoegen om extra kolommen toe te voegen, zoals Tickersymbool of Beurs. | C7: Obligaties | D7: 1,300 | E7: =_FV(TabelPortefeuille[[#This Row],[Bedrijf]],"Price") -> € 10.46 | F7: =_FV(TabelPortefeuille[[#This Row],[Bedrijf]],"Change") -> € 0.01 | G7: =_FV(TabelPortefeuille[[#This Row],[Bedrijf]],"Change (%)",TRUE) -> 0.12% | H7: =IFERROR(I7/SUBTOTAL(109,TabelPortefeuille[Waarde]),"") -> 6% | I7: € 13,598.00
A8: Klik op een van de aandelen om de weergave te vernieuwen. Klik op het tabblad Gegevens in de groep Query’s en verbindingen op Alles vernieuwen of druk op Ctrl+Alt+F5. | C8: Internationale aandelen | D8: 1,200 | E8: =_FV(TabelPortefeuille[[#This Row],[Bedrijf]],"Price") -> € 29.29 | F8: =_FV(TabelPortefeuille[[#This Row],[Bedrijf]],"Change") -> € 0.07 | G8: =_FV(TabelPortefeuille[[#This Row],[Bedrijf]],"Change (%)",TRUE) -> 0.24% | H8: =IFERROR(I8/SUBTOTAL(109,TabelPortefeuille[Waarde]),"") -> 17% | I8: € 35,148.00
C9: Contant geld | D9: 10,000 | E9: =_FV(TabelPortefeuille[[#This Row],[Bedrijf]],"Price") -> € 1.00 | F9: =_FV(TabelPortefeuille[[#This Row],[Bedrijf]],"Change") -> 0 | G9: =_FV(TabelPortefeuille[[#This Row],[Bedrijf]],"Change (%)",TRUE) -> 0.00% | H9: =IFERROR(I9/SUBTOTAL(109,TabelPortefeuille[Waarde]),"") -> 5% | I9: € 10,000.00
C10: Onroerend goed | D10: 125 | E10: =_FV(TabelPortefeuille[[#This Row],[Bedrijf]],"Price") -> € 116.63 | F10: =_FV(TabelPortefeuille[[#This Row],[Bedrijf]],"Change") -> € -0.25 | G10: =_FV(TabelPortefeuille[[#This Row],[Bedrijf]],"Change (%)",TRUE) -> -0.21% | H10: =IFERROR(I10/SUBTOTAL(109,TabelPortefeuille[Waarde]),"") -> 7% | I10: € 14,578.75
C11: Grondstoffen | D11: 100 | E11: =_FV(TabelPortefeuille[[#This Row],[Bedrijf]],"Price") -> € 117.33 | F11: =_FV(TabelPortefeuille[[#This Row],[Bedrijf]],"Change") -> € -0.27 | G11: =_FV(TabelPortefeuille[[#This Row],[Bedrijf]],"Change (%)",TRUE) -> -0.23% | H11: =IFERROR(I11/SUBTOTAL(109,TabelPortefeuille[Waarde]),"") -> 6% | I11: € 11,733.00
B12: Totaal | I12: =IFERROR(SUBTOTAL(109,TabelPortefeuille[Waarde]), "") -> € 211,309.75

Sheet Activatoewijzing
A1: Beleggingen bijhouden | B1: Beleggingen bijhouden
A3: Activatoewijzing | B3: Activatoewijzing
A6: In rijen 19-25 is er een staafdiagram met een visuele vergelijking van het daadwerkelijke percentage beleggingen in elke categorie met de doelen die zijn ingesteld in de onderstaande tabel.
A19: Er is een tabel die het daadwerkelijke percentage beleggingen in elke categorie berekend en de uitkomst vergelijkt met de doelen. | B19: Categorie | C19: Mijn doel | D19: Werkelijk | E19: Verschil | F19: Drempel | G19: Waarde
A20: De beleggingscategorieën in de tabel Portefeuille in cellen B19:G25 worden automatisch gevuld vanuit de tabel. Voer een doel in voor elke beleggingscategorie in cellen C20:C25 en ga naar Gegevens > Vernieuwen of druk op Ctrl+Alt+F5. | B20: Amerikaanse aandelen | C20: 55% | D20: =IFERROR(G20/SUBTOTAL(109,TabelActivaToewijzing[Waarde]),"") -> 60% | E20: =D20 - C20 -> 4.7% | F20: =MIN(5%, $C20 * 25%) -> 5% | G20: =SUMIF(TabelPortefeuille[Categorie], B20, TabelPortefeuille[Waarde]) -> € 126,252.00
A21: Wanneer een activacategorie de Drempel overschrijdt, wordt de inhoud weergegeven in geel. | B21: Internationale aandelen | C21: 20% | D21: =IFERROR(G21/SUBTOTAL(109,TabelActivaToewijzing[Waarde]),"") -> 17% | E21: -3.4% | F21: 5% | G21: =SUMIF(TabelPortefeuille[Categorie], B21, TabelPortefeuille[Waarde]) -> € 35,148.00
B22: Obligaties | C22: 10% | D22: =IFERROR(G22/SUBTOTAL(109,TabelActivaToewijzing[Waarde]),"") -> 6% | E22: -3.6% | F22: 3% | G22: =SUMIF(TabelPortefeuille[Categorie], B22, TabelPortefeuille[Waarde]) -> € 13,598.00
B23: Contant geld | C23: 5% | D23: =IFERROR(G23/SUBTOTAL(109,TabelActivaToewijzing[Waarde]),"") -> 5% | E23: -0.3% | F23: 1% | G23: =SUMIF(TabelPortefeuille[Categorie], B23, TabelPortefeuille[Waarde]) -> € 10,000.00
B24: Onroerend goed | C24: 5% | D24: =IFERROR(G24/SUBTOTAL(109,TabelActivaToewijzing[Waarde]),"") -> 7% | E24: 1.9% | F24: 1% | G24: =SUMIF(TabelPortefeuille[Categorie], B24, TabelPortefeuille[Waarde]) -> € 14,578.75
B25: Grondstoffen | C25: 5% | D25: =IFERROR(G25/SUBTOTAL(109,TabelActivaToewijzing[Waarde]),"") -> 6% | E25: 0.6% | F25: 1% | G25: =SUMIF(TabelPortefeuille[Categorie], B25, TabelPortefeuille[Waarde]) -> € 11,733.00
